[Event "Titled Tuesday Blitz February 15 Late 2022"]
[White "Lopez Gracia, Fernando"]
[Black "Dias, Joao Batista"]
[WhiteFideId "2207184"]
[BlackFideId "2108240"]
[WhiteElo "2436"]
[BlackElo "1898"]
[Result "1-0"]
[Round "06"]
[TimeControl "180+1"]
[Date "2022.02.16"]
[WhiteClock "0:01:39"]
[BlackClock "0:01:10"]

1. c4 {[%clk 0:02:59]}  c5 {[%clk 0:02:59]} 2. Nf3 {[%clk 0:02:59]}  g6 {[%clk 0:02:59]} 3. d4 {[%clk 0:02:57]}  Bg7 {[%clk 0:03:00]} 4. e4 {[%clk 0:02:57]}  cxd4 {[%clk 0:02:59]} 5. Nxd4 {[%clk 0:02:58]}  Nc6 {[%clk 0:02:59]} 6. Be3 {[%clk 0:02:58]}  d6 {[%clk 0:02:57]} 7. Nc3 {[%clk 0:02:58]}  Nf6 {[%clk 0:02:57]} 8. Be2 {[%clk 0:02:59]}  O-O {[%clk 0:02:57]} 9. O-O {[%clk 0:03:00]}  a6 {[%clk 0:02:57]} 10. Rc1 {[%clk 0:02:58]}  Bd7 {[%clk 0:02:57]} 11. f4 {[%clk 0:02:57]}  Rc8 {[%clk 0:02:44]} 12. b3 {[%clk 0:02:56]}  Qa5 {[%clk 0:02:36]} 13. Bf3 {[%clk 0:02:34]}  Rfd8 {[%clk 0:02:34]} 14. Qe1 {[%clk 0:02:29]}  e5 {[%clk 0:02:25]} 15. Nde2 {[%clk 0:02:23]}  exf4 {[%clk 0:02:23]} 16. Nxf4 {[%clk 0:02:22]}  Ne5 {[%clk 0:02:23]} 17. Ncd5 {[%clk 0:02:18]}  Nxd5 {[%clk 0:02:20]} 18. Qxa5 {[%clk 0:02:17]}  Nxe3 {[%clk 0:02:18]} 19. Rfe1 {[%clk 0:02:17]}  N3g4 {[%clk 0:02:12]} 20. Bxg4 {[%clk 0:02:17]}  Bxg4 {[%clk 0:02:08]} 21. h3 {[%clk 0:02:16]}  Bd7 {[%clk 0:02:05]} 22. Rcd1 {[%clk 0:02:16]}  Bc6 {[%clk 0:02:05]} 23. Nd5 {[%clk 0:02:12]}  Re8 {[%clk 0:01:58]} 24. Nb4 {[%clk 0:02:08]}  Re6 {[%clk 0:01:50]} 25. Nxc6 {[%clk 0:02:05]}  Rxc6 {[%clk 0:01:48]} 26. Qd8+ {[%clk 0:02:04]}  Bf8 {[%clk 0:01:48]} 27. Rd5 {[%clk 0:01:59]}  Kg7 {[%clk 0:01:47]} 28. Rf1 {[%clk 0:01:57]}  Be7 {[%clk 0:01:46]} 29. Qe8 {[%clk 0:01:57]}  Bf6 {[%clk 0:01:43]} 30. Qb8 {[%clk 0:01:49]}  Rb6 {[%clk 0:01:35]} 31. Qc7 {[%clk 0:01:46]}  Rc6 {[%clk 0:01:25]} 32. Qxb7 {[%clk 0:01:45]}  Re7 {[%clk 0:01:15]} 33. Qa8 {[%clk 0:01:40]}  Nd7 {[%clk 0:01:10]} 34. Qxc6 {[%clk 0:01:39]} 1-0


[Site "https://www.chess.com"]

[Event "Titled Tuesday Blitz February 15 Late 2022"]
[White "Martinez Alcantara, Jose Eduardo"]
[Black "Holt, Conrad"]
[WhiteFideId "3805662"]
[BlackFideId "2034387"]
[WhiteElo "2690"]
[BlackElo "2586"]
[Result "0-1"]
[Round "06"]
[TimeControl "180+1"]
[Date "2022.02.15"]
[WhiteClock "0:00:07"]
[BlackClock "0:00:07"]

1. c4 {[%clk 0:03:00]}  c6 {[%clk 0:02:56]} 2. Nf3 {[%clk 0:03:00]}  d5 {[%clk 0:02:56]} 3. g3 {[%clk 0:03:01]}  Bg4 {[%clk 0:02:53]} 4. Bg2 {[%clk 0:03:01]}  Nd7 {[%clk 0:02:54]} 5. cxd5 {[%clk 0:02:52]}  cxd5 {[%clk 0:02:53]} 6. Qb3 {[%clk 0:02:44]}  Nc5 {[%clk 0:02:48]} 7. Qb4 {[%clk 0:02:25]}  Bxf3 {[%clk 0:02:35]} 8. Bxf3 {[%clk 0:02:26]}  e6 {[%clk 0:02:35]} 9. O-O {[%clk 0:02:27]}  a5 {[%clk 0:02:25]} 10. Qb5+ {[%clk 0:02:27]}  Qd7 {[%clk 0:02:25]} 11. Nc3 {[%clk 0:02:27]}  Nf6 {[%clk 0:02:15]} 12. d3 {[%clk 0:02:26]}  Be7 {[%clk 0:02:09]} 13. Be3 {[%clk 0:02:23]}  O-O {[%clk 0:02:03]} 14. Rac1 {[%clk 0:02:12]}  Rfc8 {[%clk 0:02:00]} 15. Bd4 {[%clk 0:02:06]}  Rc6 {[%clk 0:01:42]} 16. Rfd1 {[%clk 0:01:45]}  Qc7 {[%clk 0:01:35]} 17. Bxc5 {[%clk 0:01:29]}  Rxc5 {[%clk 0:01:35]} 18. Qa4 {[%clk 0:01:25]}  Rc8 {[%clk 0:01:25]} 19. Kg2 {[%clk 0:01:10]}  Qb6 {[%clk 0:01:15]} 20. Rb1 {[%clk 0:01:08]}  Qb4 {[%clk 0:01:09]} 21. Qb3 {[%clk 0:00:47]}  g5 {[%clk 0:01:04]} 22. e3 {[%clk 0:00:43]}  Qxb3 {[%clk 0:00:52]} 23. axb3 {[%clk 0:00:43]}  R5c6 {[%clk 0:00:52]} 24. h3 {[%clk 0:00:21]}  Rb6 {[%clk 0:00:31]} 25. e4 {[%clk 0:00:20]}  d4 {[%clk 0:00:30]} 26. Ne2 {[%clk 0:00:20]}  Rb4 {[%clk 0:00:14]} 27. Rdc1 {[%clk 0:00:19]}  Rc5 {[%clk 0:00:09]} 28. Rc4 {[%clk 0:00:15]}  Rcxc4 {[%clk 0:00:04]} 29. bxc4 {[%clk 0:00:15]}  Bc5 {[%clk 0:00:04]} 30. Nc1 {[%clk 0:00:13]}  Nd7 {[%clk 0:00:04]} 31. b3 {[%clk 0:00:10]}  a4 {[%clk 0:00:04]} 32. Bd1 {[%clk 0:00:09]}  a3 {[%clk 0:00:04]} 33. Na2 {[%clk 0:00:10]}  Rb6 {[%clk 0:00:04]} 34. b4 {[%clk 0:00:10]}  Ne5 {[%clk 0:00:03]} 35. Bc2 {[%clk 0:00:10]}  Be7 {[%clk 0:00:03]} 36. Kf1 {[%clk 0:00:05]}  Ra6 {[%clk 0:00:04]} 37. Ke2 {[%clk 0:00:05]}  Ra8 {[%clk 0:00:04]} 38. c5 {[%clk 0:00:05]}  b6 {[%clk 0:00:03]} 39. cxb6 {[%clk 0:00:05]}  Rb8 {[%clk 0:00:02]} 40. Rb3 {[%clk 0:00:06]}  Rxb6 {[%clk 0:00:02]} 41. Rxa3 {[%clk 0:00:07]}  Nc6 {[%clk 0:00:03]} 42. Ra8+ {[%clk 0:00:06]}  Kg7 {[%clk 0:00:03]} 43. Rc8 {[%clk 0:00:04]}  Nxb4 {[%clk 0:00:02]} 44. Nxb4 {[%clk 0:00:04]}  Bxb4 {[%clk 0:00:03]} 45. f4 {[%clk 0:00:02]}  gxf4 {[%clk 0:00:02]} 46. gxf4 {[%clk 0:00:03]}  Be7 {[%clk 0:00:02]} 47. e5 {[%clk 0:00:04]}  Rb2 {[%clk 0:00:03]} 48. Kf3 {[%clk 0:00:04]}  Ra2 {[%clk 0:00:02]} 49. Rc7 {[%clk 0:00:05]}  Bd8 {[%clk 0:00:02]} 50. Rc8 {[%clk 0:00:05]}  Ba5 {[%clk 0:00:03]} 51. Ke4 {[%clk 0:00:03]}  Rb2 {[%clk 0:00:03]} 52. Rc5 {[%clk 0:00:02]}  Bb6 {[%clk 0:00:03]} 53. Rc6 {[%clk 0:00:03]}  h6 {[%clk 0:00:03]} 54. f5 {[%clk 0:00:03]}  exf5+ {[%clk 0:00:03]} 55. Kxf5 {[%clk 0:00:04]}  Rb5 {[%clk 0:00:03]} 56. Ke4 {[%clk 0:00:03]}  Ba7 {[%clk 0:00:03]} 57. Bd1 {[%clk 0:00:04]}  Rc5 {[%clk 0:00:03]} 58. Rd6 {[%clk 0:00:01]}  Bb8 {[%clk 0:00:03]} 59. Rd7 {[%clk 0:00:01]}  Rxe5+ {[%clk 0:00:03]} 60. Kxd4 {[%clk 0:00:02]}  Re1 {[%clk 0:00:04]} 61. Bh5 {[%clk 0:00:02]}  Rf1 {[%clk 0:00:04]} 62. Ke3 {[%clk 0:00:02]}  Rf5 {[%clk 0:00:04]} 63. Bg4 {[%clk 0:00:02]}  Rf6 {[%clk 0:00:04]} 64. d4 {[%clk 0:00:02]}  Bd6 {[%clk 0:00:05]} 65. Ke4 {[%clk 0:00:03]}  Kf8 {[%clk 0:00:05]} 66. Kd5 {[%clk 0:00:03]}  Be7 {[%clk 0:00:05]} 67. Rb7 {[%clk 0:00:03]}  Rd6+ {[%clk 0:00:05]} 68. Ke5 {[%clk 0:00:04]}  Ra6 {[%clk 0:00:04]} 69. Ke4 {[%clk 0:00:03]}  Bf6 {[%clk 0:00:05]} 70. Bh5 {[%clk 0:00:03]}  Re6+ {[%clk 0:00:04]} 71. Kf5 {[%clk 0:00:04]}  Re7 {[%clk 0:00:04]} 72. Rb4 {[%clk 0:00:02]}  Kg7 {[%clk 0:00:05]} 73. d5 {[%clk 0:00:02]}  Re5+ {[%clk 0:00:05]} 74. Kg4 {[%clk 0:00:03]}  Rg5+ {[%clk 0:00:05]} 75. Kf4 {[%clk 0:00:03]}  Rxh5 {[%clk 0:00:05]} 76. Rb5 {[%clk 0:00:04]}  Rh4+ {[%clk 0:00:05]} 77. Kg3 {[%clk 0:00:03]}  Rd4 {[%clk 0:00:06]} 78. Kf3 {[%clk 0:00:03]}  Kg6 {[%clk 0:00:06]} 79. Ra5 {[%clk 0:00:03]}  Rd1 {[%clk 0:00:06]} 80. Ke4 {[%clk 0:00:03]}  Re1+ {[%clk 0:00:05]} 81. Kf3 {[%clk 0:00:03]}  Rd1 {[%clk 0:00:05]} 82. Ke4 {[%clk 0:00:04]}  Rd4+ {[%clk 0:00:06]} 83. Ke3 {[%clk 0:00:04]}  Kf5 {[%clk 0:00:06]} 84. Ra7 {[%clk 0:00:04]}  Rxd5 {[%clk 0:00:06]} 85. Rxf7 {[%clk 0:00:04]}  Kg6 {[%clk 0:00:06]} 86. Ra7 {[%clk 0:00:04]}  Rh5 {[%clk 0:00:06]} 87. Kf4 {[%clk 0:00:04]}  Rxh3 {[%clk 0:00:06]} 88. Kg4 {[%clk 0:00:04]}  Rh4+ {[%clk 0:00:06]} 89. Kg3 {[%clk 0:00:05]}  Rc4 {[%clk 0:00:07]} 90. Ra6 {[%clk 0:00:06]}  h5 {[%clk 0:00:07]} 91. Rc6 {[%clk 0:00:07]}  Rxc6 {[%clk 0:00:07]} 0-1


[Site "https://www.chess.com"]

[Event "Titled Tuesday Blitz February 15 Late 2022"]
[White "Martinez Ramirez, Lennis"]
[Black "Fiorito, Fabian"]
[WhiteFideId "3509079"]
[BlackFideId "100200"]
[WhiteElo "2374"]
[BlackElo "2395"]
[Result "0-1"]
[Round "06"]
[TimeControl "180+1"]
[Date "2022.02.16"]
[WhiteClock "0:00:01"]
[BlackClock "0:00:10"]

1. d4 {[%clk 0:03:00]}  d5 {[%clk 0:03:00]} 2. Bf4 {[%clk 0:03:01]}  Nf6 {[%clk 0:03:00]} 3. e3 {[%clk 0:03:01]}  c5 {[%clk 0:03:00]} 4. Nd2 {[%clk 0:03:00]}  Nc6 {[%clk 0:02:59]} 5. Ngf3 {[%clk 0:02:59]}  cxd4 {[%clk 0:02:58]} 6. exd4 {[%clk 0:02:58]}  a6 {[%clk 0:02:59]} 7. h3 {[%clk 0:02:58]}  Bf5 {[%clk 0:02:58]} 8. c3 {[%clk 0:02:55]}  h6 {[%clk 0:02:55]} 9. Ne5 {[%clk 0:02:51]}  Rc8 {[%clk 0:02:54]} 10. Ndf3 {[%clk 0:02:49]}  e6 {[%clk 0:02:52]} 11. Qa4 {[%clk 0:02:47]}  Nd7 {[%clk 0:02:47]} 12. Nxc6 {[%clk 0:02:20]}  Rxc6 {[%clk 0:02:47]} 13. Ne5 {[%clk 0:02:14]}  Nxe5 {[%clk 0:02:46]} 14. Bxe5 {[%clk 0:02:15]}  f6 {[%clk 0:02:35]} 15. Bg3 {[%clk 0:01:58]}  Qd7 {[%clk 0:02:28]} 16. Qb3 {[%clk 0:01:54]}  Be7 {[%clk 0:02:19]} 17. Be2 {[%clk 0:01:54]}  O-O {[%clk 0:02:19]} 18. O-O {[%clk 0:01:54]}  Bd6 {[%clk 0:02:08]} 19. Bxd6 {[%clk 0:01:52]}  Rxd6 {[%clk 0:02:09]} 20. a4 {[%clk 0:01:51]}  Rc8 {[%clk 0:02:08]} 21. a5 {[%clk 0:01:51]}  e5 {[%clk 0:02:03]} 22. dxe5 {[%clk 0:01:49]}  fxe5 {[%clk 0:02:04]} 23. Rfd1 {[%clk 0:01:48]}  Be6 {[%clk 0:02:02]} 24. Bg4 {[%clk 0:01:39]}  Bxg4 {[%clk 0:01:58]} 25. hxg4 {[%clk 0:01:40]}  Kh8 {[%clk 0:01:50]} 26. Ra4 {[%clk 0:01:38]}  Rd8 {[%clk 0:01:33]} 27. Rb4 {[%clk 0:01:32]}  e4 {[%clk 0:01:33]} 28. g5 {[%clk 0:01:29]}  hxg5 {[%clk 0:01:28]} 29. Rxb7 {[%clk 0:01:27]}  Qg4 {[%clk 0:01:28]} 30. Rd4 {[%clk 0:01:19]}  Qf4 {[%clk 0:01:16]} 31. Qd1 {[%clk 0:01:12]}  Rf8 {[%clk 0:01:00]} 32. Qe2 {[%clk 0:01:08]}  g4 {[%clk 0:00:36]} 33. g3 {[%clk 0:00:46]}  Qf5 {[%clk 0:00:35]} 34. Rb6 {[%clk 0:00:42]}  Rff6 {[%clk 0:00:35]} 35. Rdb4 {[%clk 0:00:34]}  Qg6 {[%clk 0:00:17]} 36. Qxa6 {[%clk 0:00:28]}  e3 {[%clk 0:00:16]} 37. Rf4 {[%clk 0:00:14]}  Rxf4 {[%clk 0:00:12]} 38. gxf4 {[%clk 0:00:15]}  exf2+ {[%clk 0:00:11]} 39. Kxf2 {[%clk 0:00:13]}  g3+ {[%clk 0:00:09]} 40. Kg1 {[%clk 0:00:12]}  Qb1+ {[%clk 0:00:05]} 41. Kg2 {[%clk 0:00:12]}  Qe1 {[%clk 0:00:04]} 42. Rb8+ {[%clk 0:00:08]}  Kh7 {[%clk 0:00:04]} 43. Qxd6 {[%clk 0:00:09]}  Qf2+ {[%clk 0:00:04]} 44. Kh3 {[%clk 0:00:09]}  Qh2+ {[%clk 0:00:05]} 45. Kg4 {[%clk 0:00:09]}  g2 {[%clk 0:00:06]} 46. Kf5 {[%clk 0:00:01]}  g1=Q {[%clk 0:00:07]} 47. Qxd5 {[%clk 0:00:01]}  Qg6+ {[%clk 0:00:07]} 48. Ke5 {[%clk 0:00:01]}  Qe2+ {[%clk 0:00:08]} 49. Kd4 {[%clk 0:00:01]}  Qgd3+ {[%clk 0:00:09]} 50. Kc5 {[%clk 0:00:02]}  Qee3+ {[%clk 0:00:09]} 51. Qd4 {[%clk 0:00:02]}  Qexd4+ {[%clk 0:00:09]} 52. cxd4 {[%clk 0:00:03]}  Qc2+ {[%clk 0:00:09]} 53. Kd5 {[%clk 0:00:03]}  Qf5+ {[%clk 0:00:08]} 54. Kc4 {[%clk 0:00:02]}  Qxa5 {[%clk 0:00:09]} 55. b4 {[%clk 0:00:01]}  Qc7+ {[%clk 0:00:09]} 56. Kd5 {[%clk 0:00:01]}  Qxb8 {[%clk 0:00:10]} 0-1


[Site "https://www.chess.com"]

[Event "Titled Tuesday Blitz February 15 Late 2022"]
[White "Matinian, Nikita"]
[Black "Al-Tarboush, Ward"]
[WhiteFideId "24129100"]
[BlackFideId "7601450"]
[WhiteElo "2422"]
[BlackElo "2276"]
[Result "1-0"]
[Round "06"]
[TimeControl "180+1"]
[Date "2022.02.16"]
[WhiteClock "0:01:45"]
[BlackClock "0:01:20"]

1. e4 {[%clk 0:03:00]}  b6 {[%clk 0:03:00]} 2. d4 {[%clk 0:02:59]}  Bb7 {[%clk 0:03:01]} 3. Nc3 {[%clk 0:03:00]}  e6 {[%clk 0:03:01]} 4. a3 {[%clk 0:03:00]}  Nf6 {[%clk 0:03:00]} 5. e5 {[%clk 0:02:58]}  Ne4 {[%clk 0:03:00]} 6. Nxe4 {[%clk 0:02:56]}  Bxe4 {[%clk 0:03:01]} 7. Nf3 {[%clk 0:02:57]}  Be7 {[%clk 0:02:58]} 8. Bd3 {[%clk 0:02:56]}  Bxd3 {[%clk 0:02:57]} 9. Qxd3 {[%clk 0:02:57]}  d5 {[%clk 0:02:57]} 10. h4 {[%clk 0:02:56]}  h6 {[%clk 0:02:56]} 11. h5 {[%clk 0:02:56]}  c5 {[%clk 0:02:57]} 12. Rh3 {[%clk 0:02:54]}  cxd4 {[%clk 0:02:54]} 13. Rg3 {[%clk 0:02:52]}  Bf8 {[%clk 0:02:53]} 14. Nxd4 {[%clk 0:02:50]}  Qd7 {[%clk 0:02:52]} 15. Bf4 {[%clk 0:02:41]}  a6 {[%clk 0:02:52]} 16. O-O-O {[%clk 0:02:41]}  Nc6 {[%clk 0:02:50]} 17. Kb1 {[%clk 0:02:40]}  Nxd4 {[%clk 0:02:45]} 18. Qxd4 {[%clk 0:02:40]}  Bc5 {[%clk 0:02:45]} 19. Qd2 {[%clk 0:02:39]}  f5 {[%clk 0:02:28]} 20. exf6 {[%clk 0:02:36]}  gxf6 {[%clk 0:02:27]} 21. Bxh6 {[%clk 0:02:34]}  O-O-O {[%clk 0:02:28]} 22. Rg7 {[%clk 0:02:31]}  Qb5 {[%clk 0:02:28]} 23. Qf4 {[%clk 0:02:01]}  e5 {[%clk 0:02:22]} 24. Qf5+ {[%clk 0:01:58]}  Kb8 {[%clk 0:02:01]} 25. Qxf6 {[%clk 0:01:50]}  Bxa3 {[%clk 0:01:39]} 26. Qxe5+ {[%clk 0:01:49]}  Ka8 {[%clk 0:01:34]} 27. Bc1 {[%clk 0:01:47]}  Rhe8 {[%clk 0:01:20]} 28. Qc7 {[%clk 0:01:45]} 1-0


[Site "https://www.chess.com"]

[Event "Titled Tuesday Blitz February 15 Late 2022"]
[White "Medeiros Jr, Francisco De Assis"]
[Black "Yushko, Olga"]
[WhiteFideId "2114267"]
[BlackFideId "14114500"]
[WhiteElo "1998"]
[BlackElo "2028"]
[Result "0-1"]
[Round "06"]
[TimeControl "180+1"]
[Date "2022.02.16"]
[WhiteClock "0:00:04"]
[BlackClock "0:00:24"]

1. d4 {[%clk 0:03:00]}  e6 {[%clk 0:02:59]} 2. Nf3 {[%clk 0:03:01]}  f5 {[%clk 0:02:59]} 3. Bf4 {[%clk 0:02:55]}  Nf6 {[%clk 0:02:59]} 4. e3 {[%clk 0:02:53]}  Be7 {[%clk 0:02:59]} 5. Bd3 {[%clk 0:02:54]}  d6 {[%clk 0:02:59]} 6. c4 {[%clk 0:02:54]}  O-O {[%clk 0:02:59]} 7. Nc3 {[%clk 0:02:52]}  Qe8 {[%clk 0:02:59]} 8. Qc2 {[%clk 0:02:52]}  Qg6 {[%clk 0:02:58]} 9. O-O-O {[%clk 0:02:50]}  Nc6 {[%clk 0:02:57]} 10. Rhg1 {[%clk 0:02:47]}  Nb4 {[%clk 0:02:56]} 11. Qe2 {[%clk 0:02:48]}  Nxd3+ {[%clk 0:02:56]} 12. Qxd3 {[%clk 0:02:49]}  Ne4 {[%clk 0:02:52]} 13. Rdf1 {[%clk 0:02:43]}  Bd7 {[%clk 0:02:45]} 14. g4 {[%clk 0:02:42]}  Nxc3 {[%clk 0:02:21]} 15. bxc3 {[%clk 0:02:38]}  fxg4 {[%clk 0:02:17]} 16. Qxg6 {[%clk 0:02:38]}  hxg6 {[%clk 0:02:17]} 17. Nd2 {[%clk 0:02:39]}  Bf6 {[%clk 0:02:13]} 18. Ne4 {[%clk 0:02:37]}  e5 {[%clk 0:02:12]} 19. Bg3 {[%clk 0:02:19]}  exd4 {[%clk 0:02:09]} 20. cxd4 {[%clk 0:02:16]}  Rae8 {[%clk 0:02:08]} 21. Nc3 {[%clk 0:02:09]}  Bf5 {[%clk 0:02:05]} 22. Nd5 {[%clk 0:02:08]}  Bd8 {[%clk 0:02:03]} 23. Kd2 {[%clk 0:02:02]}  c6 {[%clk 0:02:02]} 24. Nc3 {[%clk 0:02:01]}  Bc7 {[%clk 0:01:58]} 25. c5 {[%clk 0:01:55]}  Rd8 {[%clk 0:01:54]} 26. e4 {[%clk 0:01:49]}  Bc8 {[%clk 0:01:51]} 27. Ke3 {[%clk 0:01:39]}  dxc5 {[%clk 0:01:50]} 28. Bxc7 {[%clk 0:01:38]}  cxd4+ {[%clk 0:01:48]} 29. Kd2 {[%clk 0:01:37]}  dxc3+ {[%clk 0:01:48]} 30. Kxc3 {[%clk 0:01:38]}  Rde8 {[%clk 0:01:45]} 31. e5 {[%clk 0:01:34]}  Rf3+ {[%clk 0:01:43]} 32. Kd2 {[%clk 0:01:23]}  Bf5 {[%clk 0:01:41]} 33. Rg3 {[%clk 0:01:16]}  Re7 {[%clk 0:01:38]} 34. Bd6 {[%clk 0:01:16]}  Rd7 {[%clk 0:01:35]} 35. Rxf3 {[%clk 0:01:15]}  gxf3 {[%clk 0:01:35]} 36. Ke3 {[%clk 0:01:14]}  Be6 {[%clk 0:01:32]} 37. Kxf3 {[%clk 0:01:12]}  Bxa2 {[%clk 0:01:31]} 38. Ra1 {[%clk 0:01:11]}  Bd5+ {[%clk 0:01:32]} 39. Kf4 {[%clk 0:01:12]}  Rf7+ {[%clk 0:01:30]} 40. Ke3 {[%clk 0:01:09]}  b6 {[%clk 0:01:23]} 41. f4 {[%clk 0:01:09]}  a5 {[%clk 0:01:19]} 42. Kd4 {[%clk 0:00:59]}  Ra7 {[%clk 0:01:17]} 43. Rb1 {[%clk 0:00:53]}  b5 {[%clk 0:01:16]} 44. Kc5 {[%clk 0:00:53]}  a4 {[%clk 0:01:15]} 45. Kb6 {[%clk 0:00:52]}  Rf7 {[%clk 0:01:12]} 46. Re1 {[%clk 0:00:48]}  Rd7 {[%clk 0:00:56]} 47. Kc5 {[%clk 0:00:46]}  Kf7 {[%clk 0:00:53]} 48. Rf1 {[%clk 0:00:39]}  Rb7 {[%clk 0:00:49]} 49. f5 {[%clk 0:00:36]}  gxf5 {[%clk 0:00:49]} 50. Rxf5+ {[%clk 0:00:36]}  Kg6 {[%clk 0:00:47]} 51. Rf4 {[%clk 0:00:22]}  a3 {[%clk 0:00:45]} 52. Rg4+ {[%clk 0:00:19]}  Kf7 {[%clk 0:00:44]} 53. Rf4+ {[%clk 0:00:16]}  Kg6 {[%clk 0:00:44]} 54. Rg4+ {[%clk 0:00:15]}  Kh6 {[%clk 0:00:42]} 55. e6 {[%clk 0:00:14]}  Bxe6 {[%clk 0:00:40]} 56. Bf4+ {[%clk 0:00:14]}  Kh7 {[%clk 0:00:38]} 57. Rh4+ {[%clk 0:00:14]}  Kg6 {[%clk 0:00:38]} 58. Kxc6 {[%clk 0:00:15]}  a2 {[%clk 0:00:35]} 59. Be5 {[%clk 0:00:15]}  Ra7 {[%clk 0:00:34]} 60. Ba1 {[%clk 0:00:14]}  Bc4 {[%clk 0:00:32]} 61. Rg4+ {[%clk 0:00:13]}  Kf5 {[%clk 0:00:31]} 62. Rg3 {[%clk 0:00:11]}  g5 {[%clk 0:00:30]} 63. Kc5 {[%clk 0:00:11]}  g4 {[%clk 0:00:30]} 64. Kb4 {[%clk 0:00:11]}  Ra4+ {[%clk 0:00:30]} 65. Kc3 {[%clk 0:00:11]}  Ra3+ {[%clk 0:00:30]} 66. Kb2 {[%clk 0:00:10]}  Rxg3 {[%clk 0:00:28]} 67. hxg3 {[%clk 0:00:11]}  Ke4 {[%clk 0:00:28]} 68. Kc3 {[%clk 0:00:03]}  Kf3 {[%clk 0:00:28]} 69. Kd4 {[%clk 0:00:03]}  Kxg3 {[%clk 0:00:28]} 70. Ke3 {[%clk 0:00:04]}  b4 {[%clk 0:00:24]} 0-1


[Site "https://www.chess.com"]

[Event "Titled Tuesday Blitz February 15 Late 2022"]
[White "Mekhitarian, Krikor Sevag"]
[Black "Xiong, Jeffery"]
[WhiteFideId "2107660"]
[BlackFideId "2047640"]
[WhiteElo "2598"]
[BlackElo "2727"]
[Result "0-1"]
[Round "06"]
[TimeControl "180+1"]
[Date "2022.02.15"]
[WhiteClock "0:00:02"]
[BlackClock "0:00:05"]

1. e4 {[%clk 0:03:00]}  c5 {[%clk 0:03:00]} 2. Nf3 {[%clk 0:03:00]}  d6 {[%clk 0:03:00]} 3. d4 {[%clk 0:02:59]}  cxd4 {[%clk 0:03:01]} 4. Nxd4 {[%clk 0:02:58]}  Nf6 {[%clk 0:03:01]} 5. Nc3 {[%clk 0:02:59]}  a6 {[%clk 0:03:02]} 6. Be3 {[%clk 0:02:59]}  e5 {[%clk 0:02:57]} 7. Nb3 {[%clk 0:02:59]}  Be6 {[%clk 0:02:58]} 8. f3 {[%clk 0:02:57]}  Nbd7 {[%clk 0:02:58]} 9. g4 {[%clk 0:02:56]}  b5 {[%clk 0:02:58]} 10. g5 {[%clk 0:02:45]}  b4 {[%clk 0:02:58]} 11. Ne2 {[%clk 0:02:42]}  Ng8 {[%clk 0:02:58]} 12. Qd3 {[%clk 0:02:01]}  a5 {[%clk 0:02:54]} 13. c4 {[%clk 0:02:01]}  h6 {[%clk 0:02:49]} 14. gxh6 {[%clk 0:01:51]}  g6 {[%clk 0:02:50]} 15. O-O-O {[%clk 0:01:43]}  a4 {[%clk 0:02:50]} 16. Nd2 {[%clk 0:01:43]}  Nc5 {[%clk 0:02:50]} 17. Bxc5 {[%clk 0:01:20]}  dxc5 {[%clk 0:02:51]} 18. Qxd8+ {[%clk 0:01:09]}  Rxd8 {[%clk 0:02:52]} 19. h4 {[%clk 0:00:58]}  Bxh6 {[%clk 0:02:51]} 20. b3 {[%clk 0:00:56]}  axb3 {[%clk 0:02:45]} 21. axb3 {[%clk 0:00:57]}  Nf6 {[%clk 0:02:25]} 22. Bh3 {[%clk 0:00:57]}  Bxh3 {[%clk 0:02:19]} 23. Rxh3 {[%clk 0:00:57]}  Ke7 {[%clk 0:02:20]} 24. Kc2 {[%clk 0:00:57]}  Ra8 {[%clk 0:02:20]} 25. Nc1 {[%clk 0:00:55]}  Rhd8 {[%clk 0:02:20]} 26. Rhh1 {[%clk 0:00:42]}  Nh5 {[%clk 0:02:06]} 27. Nb1 {[%clk 0:00:26]}  Rxd1 {[%clk 0:02:00]} 28. Rxd1 {[%clk 0:00:27]}  Bxc1 {[%clk 0:02:00]} 29. Kxc1 {[%clk 0:00:24]}  Nf4 {[%clk 0:02:01]} 30. Kb2 {[%clk 0:00:23]}  Rh8 {[%clk 0:01:56]} 31. Rh1 {[%clk 0:00:23]}  Rh5 {[%clk 0:01:48]} 32. Nd2 {[%clk 0:00:23]}  g5 {[%clk 0:01:48]} 33. Nf1 {[%clk 0:00:22]}  gxh4 {[%clk 0:01:49]} 34. Ne3 {[%clk 0:00:23]}  h3 {[%clk 0:01:49]} 35. Kc2 {[%clk 0:00:20]}  Rh8 {[%clk 0:01:16]} 36. Kd2 {[%clk 0:00:19]}  Ra8 {[%clk 0:01:14]} 37. Nd5+ {[%clk 0:00:20]}  Nxd5 {[%clk 0:01:12]} 38. cxd5 {[%clk 0:00:18]}  h2 {[%clk 0:01:02]} 39. Kd3 {[%clk 0:00:18]}  Ra2 {[%clk 0:00:36]} 40. Kc4 {[%clk 0:00:18]}  Rc2+ {[%clk 0:00:34]} 41. Kb5 {[%clk 0:00:18]}  Kd6 {[%clk 0:00:22]} 42. Ra1 {[%clk 0:00:18]}  Kc7 {[%clk 0:00:12]} 43. Rh1 {[%clk 0:00:09]}  Kb7 {[%clk 0:00:09]} 44. Ra1 {[%clk 0:00:08]}  f6 {[%clk 0:00:10]} 45. Rh1 {[%clk 0:00:09]}  Kc7 {[%clk 0:00:08]} 46. Ra1 {[%clk 0:00:09]}  Kb7 {[%clk 0:00:05]} 47. Rh1 {[%clk 0:00:08]}  c4 {[%clk 0:00:06]} 48. Kxb4 {[%clk 0:00:08]}  c3 {[%clk 0:00:06]} 49. Kc4 {[%clk 0:00:08]}  Kb6 {[%clk 0:00:04]} 50. Kd3 {[%clk 0:00:08]}  Rf2 {[%clk 0:00:04]} 51. Kxc3 {[%clk 0:00:09]}  Rxf3+ {[%clk 0:00:05]} 52. Kc4 {[%clk 0:00:09]}  Rh3 {[%clk 0:00:05]} 53. b4 {[%clk 0:00:08]}  Rh4 {[%clk 0:00:05]} 54. Kd3 {[%clk 0:00:03]}  Kb5 {[%clk 0:00:06]} 55. Ke3 {[%clk 0:00:03]}  Kxb4 {[%clk 0:00:04]} 56. d6 {[%clk 0:00:04]}  Rh3+ {[%clk 0:00:04]} 57. Ke2 {[%clk 0:00:03]}  Rh7 {[%clk 0:00:02]} 58. d7 {[%clk 0:00:03]}  Rxd7 {[%clk 0:00:02]} 59. Rxh2 {[%clk 0:00:04]}  Rd4 {[%clk 0:00:03]} 60. Ke3 {[%clk 0:00:02]}  Kc3 {[%clk 0:00:03]} 61. Rh6 {[%clk 0:00:03]}  Rd3+ {[%clk 0:00:04]} 62. Ke2 {[%clk 0:00:04]}  Rd6 {[%clk 0:00:05]} 63. Ke3 {[%clk 0:00:04]}  Kc4 {[%clk 0:00:04]} 64. Rh1 {[%clk 0:00:04]}  Rd3+ {[%clk 0:00:04]} 65. Ke2 {[%clk 0:00:03]}  Kd4 {[%clk 0:00:05]} 66. Rh6 {[%clk 0:00:03]}  Re3+ {[%clk 0:00:04]} 67. Kf2 {[%clk 0:00:04]}  Kxe4 {[%clk 0:00:03]} 68. Rxf6 {[%clk 0:00:04]}  Ra3 {[%clk 0:00:04]} 69. Ke2 {[%clk 0:00:03]}  Ra2+ {[%clk 0:00:04]} 70. Ke1 {[%clk 0:00:03]}  Ke3 {[%clk 0:00:05]} 71. Kf1 {[%clk 0:00:02]}  e4 {[%clk 0:00:05]} 72. Rb6 {[%clk 0:00:02]}  Kf3 {[%clk 0:00:01]} 73. Rf6+ {[%clk 0:00:01]}  Ke3 {[%clk 0:00:02]} 74. Re6 {[%clk 0:00:02]}  Ra1+ {[%clk 0:00:02]} 75. Kg2 {[%clk 0:00:03]}  Re1 {[%clk 0:00:03]} 76. Rb6 {[%clk 0:00:03]}  Rd1 {[%clk 0:00:02]} 77. Re6 {[%clk 0:00:03]}  Kd3 {[%clk 0:00:02]} 78. Rd6+ {[%clk 0:00:01]}  Ke2 {[%clk 0:00:02]} 79. Ra6 {[%clk 0:00:02]}  e3 {[%clk 0:00:02]} 80. Ra2+ {[%clk 0:00:02]}  Rd2 {[%clk 0:00:03]} 81. Ra1 {[%clk 0:00:03]}  Rb2 {[%clk 0:00:03]} 82. Kg3 {[%clk 0:00:03]}  Kd2 {[%clk 0:00:03]} 83. Kf3 {[%clk 0:00:02]}  Rc2 {[%clk 0:00:02]} 84. Kg3 {[%clk 0:00:02]}  Ke2 {[%clk 0:00:02]} 85. Kg2 {[%clk 0:00:02]}  Rd2 {[%clk 0:00:03]} 86. Kg3 {[%clk 0:00:02]}  Rd7 {[%clk 0:00:04]} 87. Ra2+ {[%clk 0:00:02]}  Ke1 {[%clk 0:00:04]} 88. Ra1+ {[%clk 0:00:02]}  Rd1 {[%clk 0:00:05]} 89. Ra2 {[%clk 0:00:01]}  Rd3 {[%clk 0:00:03]} 90. Kf3 {[%clk 0:00:02]}  e2+ {[%clk 0:00:04]} 91. Ke4 {[%clk 0:00:02]}  Rb3 {[%clk 0:00:05]} 92. Ra1+ {[%clk 0:00:01]}  Kf2 {[%clk 0:00:05]} 93. Ra3 {[%clk 0:00:02]}  Rxa3 {[%clk 0:00:05]} 0-1


[Site "https://www.chess.com"]